Cogmind - Beta 15 @@@ ROGUE MODE // 2025.08.28 @ 22:12:25 Player: FrigidRock Result: Escaped! Performance ------------- Evolutions (9) 4500 Regions Visited (25) 5000 Robots Destroyed (339) 1695 Value Destroyed (17731) 17731 Prototype IDs (43) 860 Alien Tech Used (2) 400 Bonus (15368) 15368 TOTAL SCORE: 45554 Bonus ------- Triggered High Security 500 High Alert Combat Kills 4045 Follower Combat Kills 580 Entered Garrisons 400 Entered DSFs 500 Acquired ECA 300 Met Zhirov 300 Met Warlord at Base 500 MAIN.C Attacked Warlord 500 Warlord Defense Kills 364 Met Warlord at Research 2000 Invited to Help at Command 2000 Scanned by Researcher 500 Win 3000 Friendly Fire -121 Cogmind --------- Core Integrity 248/1600 Matter 36/300 Energy 99/100 System Corruption 6% Temperature Cool (0) Movement Core (50) Location To Epsilon Eridani Parts ------- > --- POWER (2) -------- (None) > --- PROPULSION (6) --- (None) > --- UTILITY (11) ----- (None) > --- WEAPON (6) ------- (None) > --- INVENTORY (5) ---- High-capacity Matter Pod (0) Improved Terrain Scanner Vortex Driver (25) Enhanced Nova Cannon Peak State ------------ > --- POWER ------------ Quantum Reactor Improved Quantum Reactor > --- PROPULSION ------- Enhanced Biometal Leg Enhanced Biometal Leg Experimental Myomer Leg Centrium Leg Centrium Leg Centrium Leg > --- UTILITY ---------- Advanced Cooling System High-capacity Storage Unit Improved Terrain Scanner Terrain Scan Processor Experimental Targeting Computer Experimental Core Analyzer Experimental Armor Integrity Analyzer Experimental Weapon Shielding SHELL Armor > --- WEAPON ----------- BFG-9k Vortex Edition > --- INVENTORY -------- Light Ion Engine Quantum Reactor Quantum Reactor Advanced Heat Sink Advanced Coolant Injector Energy Well High-capacity Matter Pod Improved Particle Charger Advanced Kinecellerator ECM Suite Transdimensional Reconstructor Vortex Driver Enhanced Nova Cannon Enhanced Nova Cannon Enhanced Nova Cannon Enhanced Hardcell Cannon Enhanced Hardcell Cannon Enhanced Hardcell Cannon Enhanced Hardcell Cannon Fusion Bomb Launcher [Rating: 239] Favorites ----------- Power Vortex Chain Reactor Engine Improved Ion Engine Power Core Light Fission Core Reactor Vortex Chain Reactor Propulsion Experimental Myomer Leg Treads Light Treads Leg Experimental Myomer Leg Hover Unit Improved Antigrav System Utility High-capacity Storage Unit Device Advanced Cooling System Storage High-capacity Storage Unit Processor Experimental Targeting Computer Hackware Hacking Suite Protection Experimental Power Shielding Weapon Enhanced Gauss Cannon Energy Gun Dispersion Rifle Energy Cannon HERF Cannon Ballistic Gun Helical Railgun Ballistic Cannon Enhanced Gauss Cannon Launcher Precision Grenade Launcher Special Weapon Plasma Cutter Special Melee Weapon Datajack Build | -11 -10 -10 -10 -9 -8 -7 -7 -7 -7 -6 -6 -5 -5 -5 -5 -4 -4 -4 -4 -4 -3 -3 -3 -2 -1 ------- Run | Yrd Mat Min Exi Min Mat Fac Gar Fac DSF Fac Gar Fac Upp Upp War Pro Fac Upp Upp Zhi Pro Res Tes Res Acc Slots Evolved 18 | . . . . . 4 2 . . . 2 . 2 . . . . 2 . . . . 2 . 2 2 Power 1 | . . . . . . . . . . 1 . . . . . . . . . . . . . . . Propulsion 4 | . . . . . 2 1 . . . . . 1 . . . . . . . . . . . . . Utility 9 | . . . . . 1 1 . . . 1 . 1 . . . . 1 . . . . 2 . 1 1 Weapon 4 | . . . . . 1 . . . . . . . . . . . 1 . . . . . . 1 1 Parts Attached 208 | 7 . 11 1 . 19 10 7 . 8 1 10 16 5 2 9 2 14 . 1 7 . 14 10 31 23 Power 25 | 1 . 1 . . 2 . 1 . 1 1 2 1 . 1 1 . . . . 1 . . . 7 5 Engine 5 | 1 . . . . 1 . 1 . . . 1 . . 1 . . . . . . . . . . . Core 5 | . . 1 . . 1 . . . 1 1 . 1 . . . . . . . . . . . . . Reactor 15 | . . . . . . . . . . . 1 . . . 1 . . . . 1 . . . 7 5 Propulsion 54 | 2 . 2 . . 5 5 2 . 4 . 4 1 1 . 2 . 6 . . 3 . 1 3 11 2 Treads 5 | 2 . 2 . . . 1 . . . . . . . . . . . . . . . . . . . Leg 48 | . . . . . 5 4 2 . 4 . 4 1 1 . 2 . 5 . . 3 . 1 3 11 2 Wheel . | . . . . . . . . . . . . . . . . . . . . . . . . . . Hover 1 | . . . . . . . . . . . . . . . . . 1 . . . . . . . . Flight . | . . . . . . . . . . . . . . . . . . . . . . . . . . Utility 66 | 2 . 2 1 . 1 2 3 . 2 . 3 10 2 1 2 . 7 . . 3 . 3 6 8 8 Device 42 | 1 . . . . 1 2 1 . 1 . 1 7 2 1 1 . 4 . . 2 . 3 5 5 5 Storage 5 | 1 . 1 1 . . . . . . . . 1 . . . . . . . . . . . . 1 Processor 7 | . . . . . . . . . . . . . . . . . 2 . . . . . 1 3 1 Hackware 2 | . . . . . . . . . . . . 2 . . . . . . . . . . . . . Protection 10 | . . 1 . . . . 2 . 1 . 2 . . . 1 . 1 . . 1 . . . . 1 Artifact . | . . . . . . . . . . . . . . . . . . . . . . . . . . Weapon 63 | 2 . 6 . . 11 3 1 . 1 . 1 4 2 . 4 2 1 . 1 . . 10 1 5 8 Energy Gun 20 | 1 . 3 . . 4 . . . . . . . 1 . 3 1 . . 1 . . 6 . . . Energy Cannon 12 | . . . . . 1 . . . . . . . . . 1 . 1 . . . . 2 . 2 5 Ballistic Gun 4 | 1 . . . . . . . . 1 . 1 . . . . . . . . . . . . 1 . Ballistic Cannon 19 | . . . . . 5 2 . . . . . 3 1 . . 1 . . . . . 2 1 2 2 Launcher 6 | . . 2 . . 1 1 . . . . . 1 . . . . . . . . . . . . 1 Special Weapon 1 | . . . . . . . 1 . . . . . . . . . . . . . . . . . . Impact Weapon . | . . . . . . . . . . . . . . . . . . . . . . . . . . Slashing Weapon . | . . . . . . . . . . . . . . . . . . . . . . . . . . Piercing Weapon . | . . . . . . . . . . . . . . . . . . . . . . . . . . Special Melee Weapon 1 | . . 1 . . . . . . . . . . . . . . . . . . . . . . . Unidentified Prototypes 32 | . . . . . 2 1 . . . . . 1 . . 7 1 1 . . 5 . 1 4 6 3 Corrupted Parts 1 | . . . . . . . . . . . . . . . . . . . . . . . . 1 . System Corruption 9 | . . . . . . . . . . . . . . . . . . . . . . . . 9 . Parts Lost 63 | . . 7 . . 2 . 2 . 1 . 3 8 1 3 2 2 . . 2 . . 2 6 2 20 Power 10 | . . 1 . . . . . . . . 1 2 . 1 . . . . . . . . . 2 3 Propulsion 13 | . . 2 . . 1 . 1 . . . 1 2 . 1 . 1 . . . . . . . . 4 Utility 20 | . . . . . . . 1 . . . 1 3 1 . 1 . . . . . . 1 6 . 6 Weapon 20 | . . 4 . . 1 . . . 1 . . 1 . 1 1 1 . . 2 . . 1 . . 7 Highest Loss Streak 11 | . . 5 . . 1 . 1 . 1 . 2 3 1 2 2 1 . . 1 . . 1 3 1 11 To Critical Strikes . | . . . . . . . . . . . . . . . . . . . . . . . . . . Average Backups 13 | 1 6 6 6 9 13 14 14 14 14 13 14 15 16 19 18 12 14 14 14 14 14 14 14 12 13 Power . | . 2 1 1 1 1 1 1 1 1 . 1 1 2 2 2 . . . . . . . . . . Propulsion . | . . . . . . . 1 1 2 2 2 2 1 1 1 . 1 1 1 . . . . . . Utility 6 | . 2 3 3 6 5 6 5 5 5 5 4 6 5 7 7 6 7 8 8 8 9 6 6 6 6 Weapon 4 | . 1 1 1 1 5 4 5 6 5 5 5 4 5 6 5 4 4 4 4 4 3 6 5 4 4 Tool/Special . | . . . . . . . . . . . . . . . . . . . . . . . . . . Unused Backups 25 | . . . . . 3 5 . . . . 1 . . 2 9 . . . . 2 . . . . 3 Power 6 | . . . . . . 1 . . . . . . . 1 3 . . . . . . . . . 1 Propulsion 4 | . . . . . . . . . . . 1 . . . 2 . . . . 1 . . . . . Utility 8 | . . . . . . 2 . . . . . . . 1 2 . . . . 1 . . . . 2 Weapon 7 | . . . . . 3 2 . . . . . . . . 2 . . . . . . . . . . Tool/Special . | . . . . . . . . . . . . . . . . . . . . . . . . . . Average Slot Usage (%) 93 | . 100 96 100 100 85 95 93 100 99 97 99 96 100 99 95 90 93 94 89 73 92 94 94 94 77 Engine 2 | . 14 7 . . 4 7 7 7 2 . 3 3 . 3 2 . . . . . . . . . . Core 2 | . . 6 14 14 4 . . . 4 13 5 3 11 6 2 . . . . . . . . . . Reactor 3 | . . . . . . . . . . . 3 2 . . 2 5 5 5 5 4 5 4 4 4 7 Treads 3 | . 28 27 28 28 8 3 6 . . . . . . . . . . . . . . . . . . Leg 26 | . . . . . 19 30 30 38 38 33 32 32 35 34 34 32 31 31 31 31 31 28 28 25 20 Device 17 | . 14 2 . . 4 14 8 15 15 17 19 21 26 29 26 21 19 15 15 17 21 26 27 23 11 Storage 6 | . 14 14 14 14 9 7 7 7 7 6 6 5 5 5 5 5 5 5 5 5 5 4 4 4 4 Processor 3 | . . . . . . . . . . . . . . . . . 5 5 5 5 5 4 7 12 13 Protection 5 | . . 11 14 14 9 7 7 7 7 6 6 3 . . 2 5 5 9 10 6 5 5 1 . 3 Energy Gun 5 | . 14 20 28 28 12 . . . . . . . . . 2 3 5 5 5 . 10 11 11 3 . Energy Cannon 1 | . . . . . 2 . . . . . . . . . . 2 4 5 5 . 5 1 . 4 4 Ballistic Gun 1 | . 14 2 . . . . . . 5 6 6 1 . . . . . . . . . . . 2 2 Ballistic Cannon 9 | . . . . . 10 22 22 23 16 13 12 14 16 17 10 9 10 10 5 . . 4 5 10 8 Peak Build Rating 239 | 7 8 11 12 12 29 49 56 55 62 69 78 91 93 95 131 127 143 141 141 143 148 168 172 199 239 Average Rating 107 | 5 7 9 11 12 22 41 53 55 59 68 72 84 90 92 105 120 138 141 135 116 146 161 167 187 193 On Entrance 84 | . 7 8 11 12 12 28 48 55 55 61 69 77 86 93 91 116 118 143 141 136 143 148 164 166 199 Naked Turns 57 | . . . . . . . . . . . . . . . . . . . . . . . . . 57 Heaviest Build 190 | 14 14 19 34 34 49 59 74 64 64 70 80 101 88 92 119 115 136 127 127 114 119 138 132 154 190 Greatest Support 175 | 40 40 40 40 40 46 81 86 86 95 95 105 121 115 115 129 129 142 142 142 163 163 165 165 173 175 Greatest Overweight (x) 4 | . . 4 . . 1 1 1 . . . . . . . . . . . . . . . . 1 4 Average Overweight (x) . | . . . . . . . . . . . . . . . . . . . . . . . . . . Largest Inventory Capacity 20 | 8 8 8 15 15 15 15 15 15 15 15 15 20 20 20 20 20 20 20 20 20 20 20 20 20 20 Average Capacity 17 | 7 8 8 8 15 15 15 15 15 15 15 15 18 20 20 20 20 20 20 20 20 20 20 20 20 19 Most Carried 20 | 5 8 8 9 10 15 15 15 14 15 14 15 17 19 20 20 20 20 20 20 20 20 20 20 20 20 Average Carried 16 | 1 6 6 6 9 13 14 14 14 14 13 14 15 16 19 19 17 19 19 19 19 19 19 19 19 17 Final Capacity 20 | 8 8 8 15 15 15 15 15 15 15 15 15 20 20 20 20 20 20 20 20 20 20 20 20 20 5 Final Carried 20 | 5 8 6 9 10 15 15 14 14 15 13 15 15 19 20 20 17 20 19 20 20 19 19 20 20 4 Class Distribution -------------------- 34% | Gunner 23% | Scavenger-Gunner 11% | Scavenger-Mutant 8% | Tank 7% | Scavenger-Executioner 5% | Mutant 4% | Scavenger-Tank 3% | Commander-Gunner Dominant Class ---------------- Mutant | -10/Materials Scavenger-Mutant | -10/Mines Scavenger-Mutant | -10/Exiles Scavenger-Mutant | -9/Mines Scavenger-Tank | -8/Materials Scavenger-Tank | -7/Factory Tank | -7/Garrison Gunner | -7/Factory Gunner | -7/DSF Gunner | -6/Factory Gunner | -6/Garrison Scavenger-Gunner | -5/Factory Scavenger-Gunner | -5/Upper Caves Scavenger-Gunner | -5/Upper Caves Commander-Gunner | -5/Warlord Gunner | -4/Proximity Caves Gunner | -4/Factory Gunner | -4/Upper Caves Gunner | -4/Upper Caves Mutant | -4/Zhirov Gunner | -3/Proximity Caves Gunner | -3/Research Gunner | -3/Testing Scavenger-Gunner | -2/Research Scavenger-Executioner | -1/Access Resources | -11 -10 -10 -10 -9 -8 -7 -7 -7 -7 -6 -6 -5 -5 -5 -5 -4 -4 -4 -4 -4 -3 -3 -3 -2 -1 ----------- Run | Yrd Mat Min Exi Min Mat Fac Gar Fac DSF Fac Gar Fac Upp Upp War Pro Fac Upp Upp Zhi Pro Res Tes Res Acc Matter Collected 13159 | 342 21 222 62 . 359 543 972 . 507 . 1412 1189 452 442 253 369 352 186 125 100 193 1004 446 740 2868 Remotely . | . . . . . . . . . . . . . . . . . . . . . . . . . . Salvage Created 13532 | 210 96 345 . . 509 472 530 . 651 . 947 1075 240 101 134 531 228 40 181 . 345 1657 607 542 4091 Parts 543 | 18 6 30 . . 37 16 22 . 18 . 36 38 8 6 12 15 9 1 8 . 7 74 31 10 141 Haulers Intercepted 10 | . . . . . 3 2 . . . . . . . . . . 1 . . . . 1 . 3 . Recyclers Shooed 11 | . . . . . 1 1 . . . . . 4 . . . . . . . . . 3 . . 2 Parts Field Recycled . | . . . . . . . . . . . . . . . . . . . . . . . . . . Retrieved Matter . | . . . . . . . . . . . . . . . . . . . . . . . . . . Parts Self-Destructed 36 | . . . . . . . . . . . . . 7 . . 20 . 1 6 . 2 . . . . Prevented 4 | . . . . . . . . . . . . . . . . . . . 1 . 3 . . . . Kills | -11 -10 -10 -10 -9 -8 -7 -7 -7 -7 -6 -6 -5 -5 -5 -5 -4 -4 -4 -4 -4 -3 -3 -3 -2 -1 ------- Run | Yrd Mat Min Exi Min Mat Fac Gar Fac DSF Fac Gar Fac Upp Upp War Pro Fac Upp Upp Zhi Pro Res Tes Res Acc Combat Hostiles Destroyed 257 | . 2 11 . . 10 5 25 . 12 . 24 10 4 6 5 14 2 2 6 . 7 22 10 2 78 Guns 63 | . 2 2 . . 4 . . . 2 . 7 2 . . 2 5 . 1 1 . 3 19 6 . 7 Cannons 146 | . . . . . 4 5 21 . 7 . 14 8 4 6 3 9 2 . 2 . 1 2 4 2 52 AOE 46 | . . 9 . . 2 . 4 . 3 . 3 . . . . . . 1 2 . 3 . . . 19 Classes Destroyed 23 | 3 1 3 . . 2 1 2 . 1 . 1 3 . . 2 1 . . . . . . 1 1 1 Worker 13 | 2 . 1 . . . 1 . . . . . 5 . . . . . . . . . 1 . 1 2 Builder 11 | . . 2 . . . 1 . . . . . 2 . . . . . . . . . 1 1 . 4 Tunneler 9 | 4 . 2 . . . . . . . . . 1 . . . . . . . . . 1 . . 1 Hauler 10 | . . . . . 3 2 . . . . . . . . . . 1 . . . . 1 . 3 . Recycler 19 | 1 . 2 . . 1 3 . . . . . 5 . . . . . . . . . 1 . . 6 Carrier 1 | . . . . . . . . . . . . . . . . . . . . . . . . 1 . Mechanic 1 | . . . . . . . . . . . . . . . 1 . . . . . . . . . . Operator 3 | . . . . . . . . . . . . 1 . . . . . . . . . 1 1 . . Watcher 14 | . . . . . . . . . . . . 4 . . . . 2 . . . . 3 . 1 4 Swarmer 65 | . . 9 . . 3 . 11 . 7 . 5 . 4 . . 1 . . 2 . . . . . 23 Saboteur 4 | . . . . . . . . . . . . . . . 3 . . . . . . . . . 1 Grunt 82 | . 2 . . . 6 3 7 . 2 . 11 3 . . 1 8 . . . . 5 10 1 1 22 Brawler 4 | . . . . . . . . . . . . . . . . 2 . . . . . . . . 2 Duelist 6 | . . . . . 1 1 . . . . . . . . . 1 . . . . . 1 . . 2 Researcher 1 | . . . . . . . . . . . . . . . . . . . . . . . 1 . . Sentry 17 | . . 2 . . . . 4 . . . 6 . . . . 1 . . 1 . . 1 . . 2 Demolisher 2 | . . . . . . . . . . . 2 . . . . . . . . . . . . . . Specialist 5 | . . . . . . . 1 . 2 . . . . . . . . . . . . . . . 2 Hunter 24 | . . . . . . . 1 . . . . 2 . 1 . . . . 2 . 2 2 3 1 10 Programmer 36 | . . . . . . 1 1 . . . . 4 . . 1 1 2 2 1 . . 7 6 . 10 Heavy 2 | . . . . . . . . . 1 . . . . . . . . . . . . . . . 1 Q-Series 2 | . . . . . . . . . . . . . . . . . . . . . . . . . 2 Behemoth 4 | . . . . . . . . . . . . 1 . 1 . . . . . . . 1 . . 1 Wasp 3 | . . . . . . . . . . . . . . 3 . . . . . . . . . . . Thug 1 | . . . . . . . . . . . . . . 1 . . . . . . . . . . . Best Kill Streak 18 | 4 2 6 . . 5 3 8 . 4 . 4 5 4 4 3 11 2 2 3 . 5 8 4 3 18 Combat Bots Only 16 | . 2 4 . . 3 2 8 . 4 . 4 4 4 4 3 11 2 2 3 . 5 8 3 2 16 Max Kills in Single Turn 5 | 1 1 3 . . 2 2 3 . 2 . 3 2 1 2 2 2 1 1 2 . 2 2 1 2 5 Gunslinging . | . . . . . . . . . . . . . . . . . . . . . . . . . . Exploded 5 | . . 2 . . 2 . 3 . 1 . 3 . . . . . . 1 2 . 1 . . . 5 Melee . | . . . . . . . . . . . . . . . . . . . . . . . . . . Uniques/NPCs Destroyed . | . . . . . . . . . . . . . . . . . . . . . . . . . . Combat | -11 -10 -10 -10 -9 -8 -7 -7 -7 -7 -6 -6 -5 -5 -5 -5 -4 -4 -4 -4 -4 -3 -3 -3 -2 -1 -------- Run | Yrd Mat Min Exi Min Mat Fac Gar Fac DSF Fac Gar Fac Upp Upp War Pro Fac Upp Upp Zhi Pro Res Tes Res Acc Hostile Shots Fired 1662 | . 9 98 . . 25 20 159 . 40 . 154 90 22 58 44 63 11 10 44 . 34 135 115 . 531 Missed 521 | . 2 28 . . 6 3 45 . 8 . 68 27 3 21 15 13 4 6 14 . 13 48 45 . 152 Hits 1141 | . 7 70 . . 19 17 114 . 32 . 86 63 19 37 29 50 7 4 30 . 21 87 70 . 379 Melee 7 | . . . . . . . . . . . . . . . . 4 . . . . . . . . 3 Projectile 1134 | . 7 70 . . 19 17 114 . 32 . 86 63 19 37 29 46 7 4 30 . 21 87 70 . 376 AOE 6 | . . . . . . . . . . . 3 . . . . . 2 . . . . . . . 1 Critical Strikes 38 | . . 2 . . 1 . 1 . . . . 2 . 2 1 6 . 1 3 . 1 5 3 . 10 Actively Blocked 1 | . . . . . . . . . . . . . . . . 1 . . . . . . . . . Part Disruptions 3 | . . . . . . . . . . . . . . . . . . . . . . 3 . . . Damage Taken 21492 | . 98 937 . . 282 263 1363 . 599 . 1082 1196 285 589 449 598 62 143 603 . 210 1464 1018 228 10023 Core 2554 | . 18 142 . . 30 31 99 . 64 . 64 144 18 . 59 27 1 . 58 . 8 335 55 72 1329 Absorbed by Shields 1937 | . . . . . . . 25 . . . . . . . 279 475 30 . . . 204 548 304 8 64 Redirected to Shielding 325 | . . . . . . . . . . . . . . . 9 67 . 18 37 . . 33 . . 161 Regen/Repaired (Parts) 2196 | . . . . . . . . . . . . . . . 289 . . . . . . . . 67 1840 Core Remaining (%) 74 | 100 . . . 36 94 . . . 72 . 92 . . . . 75 . . . . 94 . 70 95 15 Volleys Fired 710 | 25 7 35 . . 24 18 56 . 21 . 70 61 13 17 7 26 28 6 16 . 17 83 42 10 128 Largest 6 | 2 2 2 . . 3 3 3 . 3 . 3 3 3 3 3 3 3 3 4 . 4 4 4 5 6 Hottest 472 | 60 60 121 . . 183 150 150 . 150 . 130 141 141 141 190 194 182 154 242 . 249 352 352 374 472 Shots Fired 1842 | 50 14 58 2 . 69 54 126 . 50 . 164 153 25 53 21 78 39 15 31 . 41 249 120 32 398 Gun 606 | 50 14 49 2 . 29 . . . 8 . 47 22 7 . 14 20 . 3 12 . 18 165 74 10 62 Cannon 1180 | . . . . . 39 54 124 . 39 . 116 131 18 53 7 58 39 12 18 . 9 78 36 22 327 Launcher 46 | . . 9 . . 1 . 2 . 3 . 1 . . . . . . . 1 . 14 6 . . 9 Special 10 | . . . . . . . . . . . . . . . . . . . . . . . 10 . . Kinetic 1169 | 25 7 7 . . 26 54 124 . 47 . 163 153 18 53 . 47 36 12 12 . . 67 35 18 265 Thermal 474 | 25 7 42 2 . 42 . . . . . . . 7 . . . . . . . . 161 84 10 94 Explosive 46 | . . 9 . . 1 . 2 . 3 . 1 . . . . . . . 1 . 14 6 . . 9 Electromagnetic 44 | . . . . . . . . . . . . . . . . . 3 . 6 . 19 11 1 4 . Entropic 109 | . . . . . . . . . . . . . . . 21 31 . 3 12 . 8 4 . . 30 Robot Hit Streak 39 | 6 5 19 . . 8 7 19 . 13 . 10 11 5 9 5 12 6 6 9 . 8 32 14 29 39 Robot Miss Streak 15 | 2 2 3 . . 12 4 3 . 6 . 3 3 6 3 2 5 2 1 5 . 3 2 3 . 15 Penetration Max 2 | . . . . . . . . . . . 1 1 . . 2 1 . . . . . . . 1 1 Secondary Targets 1 | . . 1 . . . . . . . . . . . . . . . . . . . . . . . Max Gunslinging Chain 1 | . . 1 . . . . . . . . . . . . . . . . . . . . . . . Shots Hit Robots 976 | 29 10 42 . . 44 25 62 . 17 . 86 89 10 23 11 46 12 5 26 . 18 148 64 25 184 Core Hits 529 | 8 6 21 . . 34 14 30 . 11 . 38 35 7 8 9 34 5 4 9 . 25 67 24 11 129 Critical Kills 18 | . . . . . . . . . . . 2 . . . . . . . . . . 8 4 2 2 Critical Parts Destroyed 23 | . . . . . . . . . . . . . . . . . . 2 . . 1 8 6 4 2 Critical Strikes 109 | . . . . . . 1 7 . 2 . 7 18 2 5 2 4 3 2 2 . 1 16 12 6 19 Meltdown 2 | . . . . . . . . . . . . . . . . . . . . . . . . . 2 Destroy 36 | . . . . . . . . . . . 2 . . . . . . . . . . 16 10 6 2 Blast 59 | . . . . . . 1 7 . 2 . 5 18 2 5 . 2 3 . 2 . . . 2 . 10 Detonate 3 | . . . . . . . . . . . . . . . . . . 2 . . 1 . . . . Sunder 9 | . . . . . . . . . . . . . . . 2 2 . . . . . . . . 5 Melee Attacks . | . . . . . . . . . . . . . . . . . . . . . . . . . . Impact . | . . . . . . . . . . . . . . . . . . . . . . . . . . Slashing . | . . . . . . . . . . . . . . . . . . . . . . . . . . Piercing . | . . . . . . . . . . . . . . . . . . . . . . . . . . Sneak Attacks . | . . . . . . . . . . . . . . . . . . . . . . . . . . Combat Hostiles . | . . . . . . . . . . . . . . . . . . . . . . . . . . Follow-up Attacks . | . . . . . . . . . . . . . . . . . . . . . . . . . . Damage Inflicted 50325 | 217 115 1093 . 3 960 877 2504 . 1124 . 3103 3703 328 1002 1228 2650 557 415 1157 . 1184 5194 2479 1105 19327 Guns 12474 | 217 112 421 . . 310 . . . 86 . 991 438 133 . 512 1087 . 164 633 . 513 3571 1709 270 1307 Cannons 30950 | . . . . . 573 877 2188 . 674 . 1919 3260 195 1002 716 1563 557 77 414 . 79 1196 706 664 14290 Explosions 6396 | . . 669 . . 68 . 316 . 364 . 193 . . . . . . 174 110 . 592 427 . . 3483 Melee . | . . . . . . . . . . . . . . . . . . . . . . . . . . Ramming 505 | . 3 3 . 3 9 . . . . . . 5 . . . . . . . . . . 64 171 247 Kinetic 21296 | 115 59 62 . . 407 877 2188 . 760 . 2910 3698 195 1002 . 968 427 77 209 . . 981 706 477 5178 Thermal 9153 | 102 53 359 . . 476 . . . . . . . 133 . . . . 174 . . 82 3419 1709 270 2376 Explosive 6140 | . . 669 . . 68 . 316 . 364 . 193 . . . . . . . 110 . 510 427 . . 3483 Electromagnetic 918 | . . . . . . . . . . . . . . . . . 130 . 205 . 181 215 . 187 . Impact . | . . . . . . . . . . . . . . . . . . . . . . . . . . Slashing . | . . . . . . . . . . . . . . . . . . . . . . . . . . Piercing . | . . . . . . . . . . . . . . . . . . . . . . . . . . Entropic 12313 | . . . . . . . . . . . . . . . 1228 1682 . 164 633 . 411 152 . . 8043 Highest Corruption 18 | . 3 3 3 3 . 2 2 2 2 . . 3 3 3 3 . 1 2 5 5 5 7 17 18 6 Average Corruption 4 | . 2 3 3 3 . 2 2 2 2 . . 1 3 3 3 . 1 1 2 5 5 6 14 14 4 Corruption Purged . | . . . . . . . . . . . . . . . . . . . . . . . . . . Corruption Blocked . | . . . . . . . . . . . . . . . . . . . . . . . . . . Effects 268 | . 2 9 15 1 . 2 14 . 6 . . 9 7 16 1 . 4 3 6 4 28 38 30 26 47 Message Errors 56 | . 1 1 2 1 . 1 1 . 2 . . . 4 3 . . 2 . 2 1 8 8 3 5 11 Matter Fused 63 | . . . 4 . . 1 2 . 1 . . 5 2 2 . . 1 2 1 . 6 6 9 9 12 Heat Flow Errors 27 | . . 3 3 . . . . . . . . . . 1 . . . . . 1 4 3 3 1 8 Energy Discharges 41 | . . 3 1 . . . 4 . 1 . . 2 . 2 . . 1 1 1 . 4 5 6 3 7 Parts Rejected 2 | . . . . . . . 1 . . . . . . . . . . . . . . . . . 1 Parts Fused 3 | . 1 . 1 . . . . . . . . . . . . . . . . 1 . . . . . Data Loss (minor) 40 | . . 1 1 . . . 4 . 1 . . 2 . 4 1 . . . 1 1 3 5 5 4 7 Data Loss (major) 8 | . . . . . . . . . . . . . 1 1 . . . . . . 1 2 . 3 . Misfires 12 | . . . 2 . . . 1 . 1 . . . . 3 . . . . . . 1 3 . 1 . Alerts 5 | . . . 1 . . . . . . . . . . . . . . . . . 1 1 1 . 1 Misdirections 2 | . . . . . . . . . . . . . . . . . . . . . . . 2 . . Weapon Failures 9 | . . 1 . . . . 1 . . . . . . . . . . . 1 . . 5 1 . . Overload Shots . | . . . . . . . . . . . . . . . . . . . . . . . . . . Overflow Damage 5070 | . . 39 . . . 15 112 . 70 . 13 216 . . 199 88 . 31 . . 19 68 38 90 4072 Projectiles 4733 | . . . . . . 15 112 . 1 . 1 216 . . 199 88 . 31 . . 19 62 14 90 3885 Explosions 313 | . . 39 . . . . . . 69 . 12 . . . . . . . . . . 6 . . 187 Melee 24 | . . . . . . . . . . . . . . . . . . . . . . . 24 . . Knockbacks 132 | . . . . . 10 6 8 . . . 13 24 1 8 . 7 . 1 3 . . 15 5 4 27 Impact 1 | . . . . . . . . . . . . . . . . . . . . . . . . . 1 Kinetic 121 | . . . . . 9 6 8 . . . 12 22 1 8 . 6 . 1 3 . . 15 5 4 21 Secondary 10 | . . . . . 1 . . . . . 1 2 . . . 1 . . . . . . . . 5 Self-Inflicted Damage 561 | . . 140 . . 22 . 69 . . . . . . . . . . 60 . . . 15 . 145 110 Shots 13 | . . 6 . . 1 . 1 . . . . . . . . . . 1 . . . 1 . . 3 Rammed 5 | . 3 1 . 1 . . . . . . . . . . . . . . . . . . . . . Targets Rammed 18 | . 3 1 . 1 1 . . . . . . 1 . . . . . . . . . . 1 2 8 Kicked 13 | . . . . . 1 . . . . . . 1 . . . . . . . . . . 1 2 8 Crushed . | . . . . . . . . . . . . . . . . . . . . . . . . . . Highest Temperature 744 | . 42 449 247 . 388 338 199 . 100 . 31 193 68 287 156 76 30 6 87 240 372 511 463 273 744 Average Temperature 115 | . 29 97 94 . 163 129 86 . 22 . 11 92 26 64 70 25 20 6 41 122 145 130 172 122 160 Received Heat Transfer 3216 | . 57 207 . . 90 117 282 . 36 . 291 147 . 395 32 127 . . 45 . 28 118 74 . 1170 Effects 30 | . . 2 . . 1 . . . . . . . . . . . . . . . 1 3 5 . 18 Shutdowns 9 | . . 1 . . . . . . . . . . . . . . . . . . . 1 . . 7 Energy Bleed 2 | . . 1 . . . . . . . . . . . . . . . . . . 1 . . . . Interference 8 | . . . . . 1 . . . . . . . . . . . . . . . . 1 4 . 2 Matter Decay 4 | . . . . . . . . . . . . . . . . . . . . . . . 1 . 3 Short Circuit 3 | . . . . . . . . . . . . . . . . . . . . . . . . . 3 Damage (major) 1 | . . . . . . . . . . . . . . . . . . . . . . . . . 1 Damage (core) 3 | . . . . . . . . . . . . . . . . . . . . . . 1 . . 2 Siege Activations . | . . . . . . . . . . . . . . . . . . . . . . . . . . Martial Activations . | . . . . . . . . . . . . . . . . . . . . . . . . . . Shielding Activations . | . . . . . . . . . . . . . . . . . . . . . . . . . . Robots Disrupted 1 | . . . . . . . . . . . . . . . . . . . . . 1 . . . . Combat Hostiles 1 | . . . . . . . . . . . . . . . . . . . . . 1 . . . . Robots Corrupted 3 | . . . . . . . . . . . . . . . . . . . 1 . . 1 . . 1 Combat Hostiles 2 | . . . . . . . . . . . . . . . . . . . 1 . . 1 . . . Parts Fried 3 | . . . . . . . . . . . . . . . . . 1 . . . . . . . 2 Impact Corruptions 3 | . . . . . . . . . . . . . . . . . . . . . . . 1 . 2 Robots Melted 2 | . . . . . . . . . . . . . . . . . . . . . . . . . 2 Combat Hostiles . | . . . . . . . . . . . . . . . . . . . . . . . . . . Parts Melted 18 | . . . . . . . . . . . . . . . . . . . . . . 9 6 . 3 Heat Transferred 10484 | 225 125 845 . . 851 . . . . . . . 259 . . . . 100 . . 50 3959 1776 370 1924 Parts Sabotaged 1 | . . . . . . . . . . . . . . . . . . . . . . . . . 1 Parts Stolen . | . . . . . . . . . . . . . . . . . . . . . . . . . . Parts Stripped . | . . . . . . . . . . . . . . . . . . . . . . . . . . Power Chain Reactions . | . . . . . . . . . . . . . . . . . . . . . . . . . . Alert | -11 -10 -10 -10 -9 -8 -7 -7 -7 -7 -6 -6 -5 -5 -5 -5 -4 -4 -4 -4 -4 -3 -3 -3 -2 -1 ------- Run | Yrd Mat Min Exi Min Mat Fac Gar Fac DSF Fac Gar Fac Upp Upp War Pro Fac Upp Upp Zhi Pro Res Tes Res Acc Maximum Alert Level 5 | . . . . . . . 3 2 2 1 4 3 . . . . . . . . . 2 1 1 5 Low Security (%) 48 | 100 100 100 . 100 100 100 5 . . . . . . . . . 100 . . . . 83 11 98 1 Level 1 11 | . . . . . . . 20 . 3 100 14 . . . . . . . . . . 2 88 1 20 Level 2 13 | . . . . . . . 60 100 96 . 9 13 . . . . . . . . . 14 . . 14 Level 3 14 | . . . . . . . 13 . . . 23 86 . . . . . . . . . . . . 15 Level 4 9 | . . . . . . . . . . . 52 . . . . . . . . . . . . . 29 Level 5 . | . . . . . . . . . . . . . . . . . . . . . . . . . 2 High Security 2 | . . . . . . . . . . . . . . . . . . . . . . . . . 15 Max Security . | . . . . . . . . . . . . . . . . . . . . . . . . . . Sterilizations 1 | . . . . . . . . . 1 . . . . . . . . . . . . . . . . Peak Influence 2185 | 10 50 126 . . 125 121 1060 556 685 359 1506 801 . . . . 77 . . . . 462 295 210 2185 Initial 790 | . . . . . . . 67 556 392 359 247 790 . . . . 77 . . . . . 257 157 . Average 414 | 1 10 54 . . 54 21 547 556 559 357 959 735 . . . . 17 . . . . 99 236 40 1039 Influence Increases 9741 | 35 55 397 . . 279 240 1053 5 303 4 1349 530 100 75 126 320 189 50 140 . 160 848 393 131 2959 Destroy 0b10 Robot/C 5420 | . 40 260 . . 200 100 500 . 240 . 760 200 80 40 100 280 40 40 120 . 140 440 220 60 1560 Destroy 0b10 Robot/NC 420 | 35 . 35 . . 20 35 . . . . . 90 10 . 10 5 15 . . . . 45 10 25 85 Destroy Leader 768 | . 10 40 . . 26 24 30 . 30 . 40 48 10 20 . 20 16 10 20 . 20 98 10 28 268 Allied During Kill 111 | . . 5 . . . . . . . . 68 . . . 16 15 7 . . . . . . . . Successful Hack 120 | . 5 . . . 23 29 14 5 . 4 . 24 . . . . 16 . . . . . . . . Disable Machine 510 | . . . . . . 30 60 . 15 . 75 60 . . . . 30 . . . . 45 75 . 120 Anti-Garrison Action 650 | . . . . . . . 350 . . . 300 . . . . . . . . . . . . . . Destroy Structure 1412 | . . 57 . . 10 22 99 . 18 . 46 108 . . . . 50 . . . . 160 48 18 776 Lose Combat Pursuer 330 | . . . . . . . . . . . 60 . . 15 . . 15 . . . . 60 30 . 150 Influence Decreases 7556 | 35 55 371 26 . 279 143 90 504 179 336 196 1290 485 426 84 249 290 54 158 . 160 390 571 411 774 Entered New Map 2669 | . . . 26 . . . 30 504 169 326 106 716 277 70 10 52 46 9 4 . . . 201 123 . Time Decay 4047 | 35 55 301 . . 179 143 . . . 10 . 494 198 326 24 187 210 45 144 . 160 370 310 282 574 Lost Part 576 | . . 50 . . 20 . 20 . 10 . 30 80 10 30 20 10 . . 10 . . 20 60 6 200 Lost Ally 184 | . . 20 . . . . 40 . . . 60 . . . 30 . 34 . . . . . . . . Purge Threat 80 | . . . . . 80 . . . . . . . . . . . . . . . . . . . . Squads Dispatched 45 | . . . . . . 2 . . 1 . . 6 . . . 1 2 . . . . 7 3 4 19 Investigation 1 | . . . . . . . . . . . . 1 . . . . . . . . . . . . . Extermination 14 | . . . . . . 1 . . . . . 2 . . . . 2 . . . . 3 1 . 5 Reinforcement 18 | . . . . . . 1 . . 1 . . 3 . . . . . . . . . 3 2 4 4 Assault 12 | . . . . . . . . . . . . . . . . 1 . . . . . 1 . . 10 Garrison . | . . . . . . . . . . . . . . . . . . . . . . . . . . Intercept . | . . . . . . . . . . . . . . . . . . . . . . . . . . Searches Triggered . | . . . . . . . . . . . . . . . . . . . . . . . . . . Construction Impeded 3 | . . . . . . . . . . . . 1 . . . . . . . . . . . . 2 Haulers Reinforced 4 | . . . . . . . . . . . . 1 . . . . . . . . . . . 3 . Active Scanning Responses . | . . . . . . . . . . . . . . . . . . . . . . . . . . Cargo Convoy Interrupts . | . . . . . . . . . . . . . . . . . . . . . . . . . . Stealth | -11 -10 -10 -10 -9 -8 -7 -7 -7 -7 -6 -6 -5 -5 -5 -5 -4 -4 -4 -4 -4 -3 -3 -3 -2 -1 --------- Run | Yrd Mat Min Exi Min Mat Fac Gar Fac DSF Fac Gar Fac Upp Upp War Pro Fac Upp Upp Zhi Pro Res Tes Res Acc Distress Signals 24 | . . . . . 1 . . . . . . 1 . . . . . . . . . 1 1 10 10 Communications Jammed 63 | . . . . . . . . . . . . . . . . . . . . . . 51 12 . . Distress Signals 63 | . . . . . . . . . . . . . . . . . . . . . . 51 12 . . Times Spotted 394 | . 3 13 . . 12 8 31 . 11 . 37 20 3 7 31 15 8 2 6 . 7 38 16 9 117 Peak Tracking Total 16 | . 2 4 . . 3 4 5 . 4 . 7 4 3 4 10 7 2 2 3 . 5 6 4 6 16 Tactical Retreats 16 | . . . . . . . . . . . 3 . . 1 . . 1 . . . . 4 2 . 5 Traps | -11 -10 -10 -10 -9 -8 -7 -7 -7 -7 -6 -6 -5 -5 -5 -5 -4 -4 -4 -4 -4 -3 -3 -3 -2 -1 ------- Run | Yrd Mat Min Exi Min Mat Fac Gar Fac DSF Fac Gar Fac Upp Upp War Pro Fac Upp Upp Zhi Pro Res Tes Res Acc Traps Triggered 14 | . 2 . . . . 1 7 . 1 . 1 1 . . . . . . . . . . . . 1 Indirectly . | . . . . . . . . . . . . . . . . . . . . . . . . . . Trap Hack Attempts . | . . . . . . . . . . . . . . . . . . . . . . . . . . Triggered . | . . . . . . . . . . . . . . . . . . . . . . . . . . Disarmed 6 | . . . . . 6 . . . . . . . . . . . . . . . . . . . . Reprogrammed 1 | . . . . . 1 . . . . . . . . . . . . . . . . . . . . Reused . | . . . . . . . . . . . . . . . . . . . . . . . . . . Traps Extracted . | . . . . . . . . . . . . . . . . . . . . . . . . . . Installed . | . . . . . . . . . . . . . . . . . . . . . . . . . . Triggered . | . . . . . . . . . . . . . . . . . . . . . . . . . . Machines | -11 -10 -10 -10 -9 -8 -7 -7 -7 -7 -6 -6 -5 -5 -5 -5 -4 -4 -4 -4 -4 -3 -3 -3 -2 -1 ---------- Run | Yrd Mat Min Exi Min Mat Fac Gar Fac DSF Fac Gar Fac Upp Upp War Pro Fac Upp Upp Zhi Pro Res Tes Res Acc Machines Disabled 50 | . . 1 . . . 2 10 . 2 . 12 4 . . 1 . 2 . . . . 3 5 . 8 Max in Single Turn 2 | . . 1 . . . 1 2 . 1 . 1 1 . . 1 . 1 . . . . 1 1 . 2 Garrison Access 3 | . . . . . . . . . . . . . . . . . . . . . . . . 3 . Garrison Relay 8 | . . . . . . . 4 . . . 4 . . . . . . . . . . . . . . Phase Generator 1 | . . . . . . . 1 . . . . . . . . . . . . . . . . . . Machines Repaired . | . . . . . . . . . . . . . . . . . . . . . . . . . . Machines Dismantled 5 | . . . . . . . 2 . . . 1 . . . 1 . . . . . . . 1 . . Machines Sabotaged . | . . . . . . . . . . . . . . . . . . . . . . . . . . Overloaded Fab Kills . | . . . . . . . . . . . . . . . . . . . . . . . . . . Hacking | -11 -10 -10 -10 -9 -8 -7 -7 -7 -7 -6 -6 -5 -5 -5 -5 -4 -4 -4 -4 -4 -3 -3 -3 -2 -1 --------- Run | Yrd Mat Min Exi Min Mat Fac Gar Fac DSF Fac Gar Fac Upp Upp War Pro Fac Upp Upp Zhi Pro Res Tes Res Acc Machines Accessed 49 | . 2 . 4 . 5 6 3 1 . 1 2 8 . . 1 . 5 . . 4 . 4 2 . 1 Terminals 29 | . 2 . . . 5 3 3 1 . . 2 3 . . . . 3 . . . . 4 2 . 1 Fabricators 5 | . . . . . . 2 . . . . . 2 . . . . 1 . . . . . . . . Repair Stations . | . . . . . . . . . . . . . . . . . . . . . . . . . . Recycling Units 4 | . . . . . . . . . . . . 3 . . . . 1 . . . . . . . . Scanalyzers . | . . . . . . . . . . . . . . . . . . . . . . . . . . Garrison Access 2 | . . . . . . 1 . . . 1 . . . . . . . . . . . . . . . Total Hacks 106 | . 7 . 4 . 17 13 7 1 . 2 4 17 . . 1 . 8 . . 17 . 5 2 . 1 Successful 48 | . 1 . 4 . 11 5 1 1 . 1 . 3 . . 1 . 3 . . 17 . . . . . Failed 57 | . 6 . . . 5 8 6 . . 1 4 14 . . . . 5 . . . . 5 2 . 1 Catastrophic 13 | . . . . . . 1 1 . . . 1 7 . . . . 1 . . . . 2 . . . Database Lockouts 1 | . . . . . 1 . . . . . . . . . . . . . . . . . . . . Manual 40 | . 7 . 2 . 7 8 . . . . . 8 . . . . 5 . . . . 1 1 . 1 Terminals 63 | . 7 . . . 17 8 7 1 . . 4 6 . . . . 5 . . . . 5 2 . 1 Fabricators 8 | . . . . . . 4 . . . . . 3 . . . . 1 . . . . . . . . Repair Stations . | . . . . . . . . . . . . . . . . . . . . . . . . . . Recycling Units 10 | . . . . . . . . . . . . 8 . . . . 2 . . . . . . . . Scanalyzers . | . . . . . . . . . . . . . . . . . . . . . . . . . . Garrison Access 3 | . . . . . . 1 . . . 2 . . . . . . . . . . . . . . . Terminal Hacks 35 | . 1 . 4 . 8 1 1 1 . . . 1 . . 1 . . . . 17 . . . . . Record 9 | . . . 4 . . . . . . . . . . . . . . . . 5 . . . . . Part Schematic 4 | . . . . . . . . . . . . . . . . . . . . 4 . . . . . Robot Analysis 6 | . . . . . 2 . . . . . . . . . . . . . . 4 . . . . . Prototype ID Bank 5 | . . . . . 1 . . . . . . . . . . . . . . 4 . . . . . Open Door 1 | . . . . . . . . . . . . . . . 1 . . . . . . . . . . Open DSF 1 | . . . . . . . . 1 . . . . . . . . . . . . . . . . . Branch Access Points 2 | . . . . . 1 . . . . . . 1 . . . . . . . . . . . . . Unreport Threat 1 | . . . . . 1 . . . . . . . . . . . . . . . . . . . . Locate Traps 2 | . 1 . . . . 1 . . . . . . . . . . . . . . . . . . . Disarm Traps 1 | . . . . . 1 . . . . . . . . . . . . . . . . . . . . Reprogram Traps 1 | . . . . . 1 . . . . . . . . . . . . . . . . . . . . Hauler Manifests 1 | . . . . . 1 . . . . . . . . . . . . . . . . . . . . Garrison Registry 1 | . . . . . . . 1 . . . . . . . . . . . . . . . . . . Fabricator Hacks 1 | . . . . . . 1 . . . . . . . . . . . . . . . . . . . Build 1 | . . . . . . 1 . . . . . . . . . . . . . . . . . . . Repair Station Hacks . | . . . . . . . . . . . . . . . . . . . . . . . . . . Recycling Unit Hacks 3 | . . . . . . . . . . . . 2 . . . . 1 . . . . . . . . Retrieve Components 3 | . . . . . . . . . . . . 2 . . . . 1 . . . . . . . . Scanalyzer . | . . . . . . . . . . . . . . . . . . . . . . . . . . Garrison Access Hacks 2 | . . . . . . 1 . . . 1 . . . . . . . . . . . . . . . Unlock Access 2 | . . . . . . 1 . . . 1 . . . . . . . . . . . . . . . Unauthorized Hacks 7 | . . . . . 3 2 . . . . . . . . . . 2 . . . . . . . . Terminals 7 | . . . . . 3 2 . . . . . . . . . . 2 . . . . . . . . Assimilate 1 | . . . . . . . . . . . . . . . . . 1 . . . . . . . . Botnet 6 | . . . . . 3 2 . . . . . . . . . . 1 . . . . . . . . Fabricators . | . . . . . . . . . . . . . . . . . . . . . . . . . . Repair Stations . | . . . . . . . . . . . . . . . . . . . . . . . . . . Recycling Units . | . . . . . . . . . . . . . . . . . . . . . . . . . . Scanalyzers . | . . . . . . . . . . . . . . . . . . . . . . . . . . Garrison Access . | . . . . . . . . . . . . . . . . . . . . . . . . . . Data Cores Recovered 3 | . . . . . . . . . . . . 1 . . . . . . . . . 1 1 . . Used 1 | . . . . . . . . . . . . . . . . . . . . . . 1 . . . Hacking Detections 37 | . 2 . . . 5 5 2 . . 1 2 8 . . . . 5 . . . . 4 2 . 1 Full Trace Events 1 | . . . . . . . . . . . . 1 . . . . . . . . . . . . . Feedback Events . | . . . . . . . . . . . . . . . . . . . . . . . . . . Feedback Blocked . | . . . . . . . . . . . . . . . . . . . . . . . . . . Robot Schematics Acquired 1 | . . . . . . . . . . . . . . . . . . . . . . . 1 . . Robots Built . | . . . . . . . . . . . . . . . . . . . . . . . . . . Authchips . | . . . . . . . . . . . . . . . . . . . . . . . . . . Time . | . . . . . . . . . . . . . . . . . . . . . . . . . . Total Robot Build Rating . | . . . . . . . . . . . . . . . . . . . . . . . . . . Part Schematics Acquired 5 | . . . . . . . . . . . . . . . . . . . . 4 . . 1 . . Parts Built 2 | . . . . . . 2 . . . . . . . . . . . . . . . . . . . Authchips . | . . . . . . . . . . . . . . . . . . . . . . . . . . Time 58 | . . . . . . 58 . . . . . . . . . . . . . . . . . . . Total Part Build Rating 14 | . . . . . . 14 . . . . . . . . . . . . . . . . . . . Parts Repaired . | . . . . . . . . . . . . . . . . . . . . . . . . . . Time . | . . . . . . . . . . . . . . . . . . . . . . . . . . Parts Recycled . | . . . . . . . . . . . . . . . . . . . . . . . . . . Recycled Matter . | . . . . . . . . . . . . . . . . . . . . . . . . . . Retrieved Matter . | . . . . . . . . . . . . . . . . . . . . . . . . . . Retrieved Components 6 | . . . . . . . . . . . . 3 . . . . 3 . . . . . . . . Parts Scanalyzed . | . . . . . . . . . . . . . . . . . . . . . . . . . . Part Schematics Acquired . | . . . . . . . . . . . . . . . . . . . . . . . . . . Parts Damaged . | . . . . . . . . . . . . . . . . . . . . . . . . . . Bothacking | -11 -10 -10 -10 -9 -8 -7 -7 -7 -7 -6 -6 -5 -5 -5 -5 -4 -4 -4 -4 -4 -3 -3 -3 -2 -1 ------------ Run | Yrd Mat Min Exi Min Mat Fac Gar Fac DSF Fac Gar Fac Upp Upp War Pro Fac Upp Upp Zhi Pro Res Tes Res Acc Used RIF Installer . | . . . . . . . . . . . . . . . . . . . . . . . . . . Robots Hacked . | . . . . . . . . . . . . . . . . . . . . . . . . . . Non-combat . | . . . . . . . . . . . . . . . . . . . . . . . . . . Combat . | . . . . . . . . . . . . . . . . . . . . . . . . . . Robot Hacks Applied . | . . . . . . . . . . . . . . . . . . . . . . . . . . Relay Couplers Released 37 | . . . . . . . 15 . . . 19 . . . . . . . . . . . . 3 . Machine Destruction 37 | . . . . . . . 15 . . . 19 . . . . . . . . . . . . 3 . Fabnet Peak Effective % . | . . . . . . . . . . . . . . . . . . . . . . . . . . Robots Rewired 9 | . . . . . . . . . . . 2 . . . 5 2 . . . . . . . . . Allies Hacked 1 | . . . . . . . . . . . . . . . . 1 . . . . . . . . . Hacks Repelled . | . . . . . . . . . . . . . . . . . . . . . . . . . . Allies | -11 -10 -10 -10 -9 -8 -7 -7 -7 -7 -6 -6 -5 -5 -5 -5 -4 -4 -4 -4 -4 -3 -3 -3 -2 -1 -------- Run | Yrd Mat Min Exi Min Mat Fac Gar Fac DSF Fac Gar Fac Upp Upp War Pro Fac Upp Upp Zhi Pro Res Tes Res Acc Total Allies 16 | . . 3 . . . . 2 . . . 3 . . . 5 2 1 . . . . . . . . Largest Group 5 | . . 3 2 2 2 . 2 . . . 2 . . . 5 4 3 . . . . . . . . Highest-Rated Group 305 | . . 40 24 24 24 . 50 . . . 72 . . . 305 207 143 . . . . . . . . Highest-Rated Ally 64 | . . 16 16 16 16 . 25 . . . 43 . . . 64 64 64 . . . . . . . . Initial Warlord ECA Mod 386 | . . . . . . . . 9 9 18 18 25 25 25 25 24 24 24 24 24 23 23 23 22 21 Total Orders 9 | . . . . . . . . . . . 6 . . . . . 3 . . . . . . . . STAY 5 | . . . . . . . . . . . 3 . . . . . 2 . . . . . . . . FOLLOW 4 | . . . . . . . . . . . 3 . . . . . 1 . . . . . . . . Ally Attacks 86 | . . 11 . . 6 . 4 . . . 39 . . . 6 8 12 . . . . . . . . Total Damage 2285 | . . 129 . . 56 . 133 . . . 1091 . . . 304 237 335 . . . . . . . . Kills 19 | . . 2 . . . . . . . . 14 . . . 1 2 . . . . . . . . . Allies Corrupted 2 | . . . . . . . . . . . . . . . . . 2 . . . . . . . . Allies Melted 4 | . . . . . . . . . . . . . . . 3 . . . . . . . . 1 . Intel | -11 -10 -10 -10 -9 -8 -7 -7 -7 -7 -6 -6 -5 -5 -5 -5 -4 -4 -4 -4 -4 -3 -3 -3 -2 -1 ------- Run | Yrd Mat Min Exi Min Mat Fac Gar Fac DSF Fac Gar Fac Upp Upp War Pro Fac Upp Upp Zhi Pro Res Tes Res Acc Active Infowar (turns) 9399 | 129 262 171 . . 263 789 35 . . . . . . 38 . . 727 529 640 222 1175 1393 683 1441 902 Sensors 785 | . . . . . . . . . . . . . . . . . . . . . . . . 740 45 Terrain 5824 | . . . . . 263 789 35 . . . . . . . . . 727 529 640 222 1175 464 123 . 857 Seismic 562 | 129 262 171 . . . . . . . . . . . . . . . . . . . . . . . Jamming 3172 | . . . . . . . . . . . . . . 38 . . 124 . . . . 1392 683 935 . ECM 49 | . . . . . . . . . . . . . . . . . . . . . . . . . 49 Robot Analysis Total 6 | . . . . . 2 . . . . . . . . . . . . . . 4 . . . . . Derelict Logs Recovered 8 | . . 1 . . . . . . . . . . 2 2 . 3 . . . . . . . . . Drone Launches . | . . . . . . . . . . . . . . . . . . . . . . . . . . Drone Recoveries . | . . . . . . . . . . . . . . . . . . . . . . . . . . Exploration | -11 -10 -10 -10 -9 -8 -7 -7 -7 -7 -6 -6 -5 -5 -5 -5 -4 -4 -4 -4 -4 -3 -3 -3 -2 -1 ------------- Run | Yrd Mat Min Exi Min Mat Fac Gar Fac DSF Fac Gar Fac Upp Upp War Pro Fac Upp Upp Zhi Pro Res Tes Res Acc Turns Passed 19970 | 279 262 851 1030 91 519 993 1285 3 315 23 1239 1314 410 734 1010 549 759 529 640 222 1175 1393 683 1600 2062 Spaces Moved 11157 | 122 140 444 642 56 236 494 553 3 186 17 733 821 300 545 718 369 466 213 318 177 335 527 400 1272 1070 Core 136 | 5 . 2 . . . . . . . . . . . . . . . . . . . . . . 129 Treads 1475 | 117 140 442 642 56 78 . . . . . . . . . . . . . . . . . . . . Legs 9546 | . . . . . 158 494 553 3 186 17 733 821 300 545 718 369 466 213 318 177 335 527 400 1272 941 Wheels . | . . . . . . . . . . . . . . . . . . . . . . . . . . Hover . | . . . . . . . . . . . . . . . . . . . . . . . . . . Flight . | . . . . . . . . . . . . . . . . . . . . . . . . . . Fastest Speed 50 | 50 160 160 160 160 120 125 126 126 126 126 122 121 121 121 111 108 110 110 110 108 110 110 113 105 50 Average Speed 128 | 155 160 160 160 160 163 166 182 126 126 126 125 121 121 121 114 109 110 110 110 109 110 110 115 108 129 Slowest Speed 260 | 160 160 250 160 160 240 192 200 126 126 126 128 123 121 122 121 111 110 110 110 110 110 113 118 176 260 Overloaded Moves . | . . . . . . . . . . . . . . . . . . . . . . . . . . Propulsion Burnouts . | . . . . . . . . . . . . . . . . . . . . . . . . . . Robots Hopped . | . . . . . . . . . . . . . . . . . . . . . . . . . . Potential Cave-ins 17 | . . . . . 1 . . . . . . . . . . . 4 2 . . 5 5 . . . Cave-ins Triggered 1 | . . . . . . . . . . . . . . . . . . . . . . . . . 1 Teleports 1 | . . . . . . . . . . . . . . . . . . . . . . . . . 1 Exploration Rate (%) 44 | 7 37 64 90 15 25 15 90 . 80 1 77 29 55 55 81 56 10 43 51 60 47 18 42 34 26 Regions Visited 25 Branch Regions 12 Pre-discovered Areas 6 | . . 1 . . . . . . . . . . 1 . . 1 . . . 3 . . . . . Known Exits Taken 8 | . . . . . 1 1 . 1 . 1 . 1 . . . . 1 . . . . 1 . 1 . Unknown Exits Taken 14 | 1 1 1 1 1 . . . . . . . . 1 1 1 1 . 1 1 1 1 . 1 . . Scrap Searched 10 | . . 1 . . . . . . . . . . 1 3 . . . 2 2 . 1 . . . . Spaces Dug 217 | . . . . . . . 8 . . . 10 5 . 10 . . 22 8 3 . 88 30 8 2 23 Terrain Destroyed 1075 | . . 59 . . 12 20 96 . 19 . 42 63 13 32 18 52 31 25 22 . 138 88 27 3 315 Melee . | . . . . . . . . . . . . . . . . . . . . . . . . . . Projectile 561 | . . . . . 5 20 21 . 6 . 30 63 13 32 18 52 31 14 12 . 7 55 27 3 152 AOE 514 | . . 59 . . 7 . 75 . 13 . 12 . . . . . . 11 10 . 131 33 . . 163 Terrain Rammed 2 | . . . . . . . . . . . . . . . . . . . . . . . . 2 . Walls Destroyed 2 | . . . . . . . . . . . . . . . . . . . . . . . . 2 . Machines Disabled . | . . . . . . . . . . . . . . . . . . . . . . . . . . Actions | -11 -10 -10 -10 -9 -8 -7 -7 -7 -7 -6 -6 -5 -5 -5 -5 -4 -4 -4 -4 -4 -3 -3 -3 -2 -1 --------- Run | Yrd Mat Min Exi Min Mat Fac Gar Fac DSF Fac Gar Fac Upp Upp War Pro Fac Upp Upp Zhi Pro Res Tes Res Acc Total 15487 | 158 163 522 644 57 316 627 694 2 228 18 905 1050 331 592 880 470 675 494 580 204 1121 1207 536 1484 1529 Wait 2736 | . 9 21 . . 6 79 23 . . . 30 119 6 19 23 49 148 274 243 . 769 548 43 117 210 Move 11132 | 121 139 443 641 55 236 493 552 2 185 16 732 820 299 544 717 368 465 212 317 176 334 526 399 1271 1069 Hop . | . . . . . . . . . . . . . . . . . . . . . . . . . . Pick Up 113 | 5 4 3 2 1 10 3 3 . 2 . 4 12 5 6 7 1 8 . 1 2 . 3 8 7 16 Fast Attach 138 | 7 . 5 . . 15 10 5 . 2 . 2 10 1 . 12 1 5 . 1 11 . 11 8 26 6 Attach 83 | . . 5 . . 1 1 2 . 1 2 3 9 1 3 1 4 5 . . . 1 5 6 4 29 Detach 34 | . . 1 . . 3 5 . . . . . 3 1 . 3 . 2 . . 1 . 3 . . 12 Swap 117 | . . 4 1 . 5 3 4 . 7 . 11 3 4 1 2 . 6 2 2 2 . 18 8 9 25 Drop 199 | . 1 4 . . 16 15 5 . 7 . 8 12 1 2 25 . 8 . . 12 . 10 11 36 26 Fire 710 | 25 7 35 . . 24 18 56 . 21 . 70 61 13 17 7 26 28 6 16 . 17 83 42 10 128 Melee . | . . . . . . . . . . . . . . . . . . . . . . . . . . Ram 2 | . . . . . . . . . . . . . . . . . . . . . . . . 2 . Kick 12 | . . . . . . . . . . . . 1 . . . . . . . . . . 1 2 8 Crush 5 | . 3 1 . 1 . . . . . . . . . . . . . . . . . . . . . Escape Stasis 35 | . . . . . . . 28 . 2 . 5 . . . . . . . . . . . . . . Rewire 128 | . . . . . . . . . 1 . 32 . . . 74 21 . . . . . . . . . Trap . | . . . . . . . . . . . . . . . . . . . . . . . . . . Miscellaneous 43 | . . . . . . . 16 . . . 8 . . . 9 . . . . . . . 10 . . Route ------- -11/Scrapyard -10/Materials -10/Mines (discovered 2 exits: [*Mat] / *Exi) -10/Exiles (discovered 2 exits: [*Min x2]) -9/Mines -8/Materials -7/Factory (discovered 2 exits: [*Low] / Gar) -7/Garrison (discovered 3 exits: *Fac x3) -7/Factory -7/DSF -6/Factory -6/Garrison (discovered 3 exits: *Fac x3) -5/Factory (discovered 5 exits: *Fac / *Upp x2 / Ext x2) -5/Upper Caves -5/Upper Caves -5/Warlord -4/Proximity Caves -4/Factory -4/Upper Caves -4/Upper Caves -4/Zhirov -3/Proximity Caves -3/Research -3/Testing -2/Research (discovered 3 exits: *Acc x2 / [*Qua]) -1/Access To Epsilon Eridani History --------- Turn | Location | Event 3 | -11/Scrapyard | Discovered new exit (range 16) 280 | -11/Scrapyard | Entered Materials 300 | -10/Materials | Build established: Mutant 520 | -10/Materials | Discovered new exit (range 10) 542 | -10/Materials | Entered Mines 570 | -10/Mines | Learned location of 1 exit from Materials 602 | -10/Mines | Met a Derelict bent on vengeance 680 | -10/Mines | Core integrity fell below 50% 713 | -10/Mines | Lost 5 parts (2n3w) 802 | -10/Mines | Discovered new exit (range 8) 840 | -10/Mines | Learned location of Storage (-9) 999 | -10/Mines | Found a hidden stash of uninstalled traps 1016 | -10/Mines | Assisted by bots powering up and referring to "LRC-V3" 1241 | -10/Mines | Build established: Scavenger-Mutant 1383 | -10/Mines | Deemed a non-threat by the Exiles lab entrance 1384 | -10/Mines | Discovered new exit (range 5) 1393 | -10/Mines | Entered Exiles 1393 | -10/Exiles | Found Exiles lab abandoned 1393 | -10/Exiles | Accompanied by 2 allies 1414 | -10/Exiles | Discovered new exit (range 15) 2410 | -10/Exiles | Discovered new exit (range 10) 2423 | -10/Exiles | Entered Mines 2423 | -9/Mines | Accompanied by 2 allies 2485 | -9/Mines | YI-UF0 nonchalantly dropped a Grenade Launcher on the ground 2501 | -9/Mines | Discovered new exit (range 4) 2514 | -9/Mines | Entered Materials 2514 | -8/Materials | Accompanied by 2 allies 2514 | -8/Materials | Evolved 4 slots: Propulsion x2, Utility x1, Weapon x1 2515 | -8/Materials | Identified exit to Factory 2959 | -8/Materials | Central database locked down 3033 | -8/Materials | Entered Factory 3033 | -7/Factory | Evolved 2 slots: Propulsion x1, Utility x1 3039 | -7/Factory | Build established: Scavenger-Tank 3184 | -7/Factory | Fabricated Hardcell Cannon (x2) 3304 | -7/Factory | Discovered new exit (range 12) 4022 | -7/Factory | Build established: Tank 4025 | -7/Factory | Identified exit to Garrison 4026 | -7/Factory | Entered Garrison 4084 | -7/Garrison | Triggered checkpoint 4149 | -7/Garrison | Garrison Relay disabled 4282 | -7/Garrison | Triggered checkpoint 4328 | -7/Garrison | Triggered checkpoint 4328 | -7/Garrison | Triggered checkpoint 4392 | -7/Garrison | Destroyed 8 combat bots 4518 | -7/Garrison | Discovered new exit (range 15) 4534 | -7/Garrison | Triggered checkpoint 4568 | -7/Garrison | Garrison Relay disabled 4846 | -7/Garrison | Triggered checkpoint 4883 | -7/Garrison | Garrison Relay disabled 4921 | -7/Garrison | Discovered new exit (range 10) 5119 | -7/Garrison | Rescued a captive Derelict 5121 | -7/Garrison | Rescued a captive Derelict 5202 | -7/Garrison | Discovered new exit (range 12) 5207 | -7/Garrison | Discovered new exit (range 13) 5207 | -7/Garrison | Discovered new exit (range 36) 5207 | -7/Garrison | Discovered new exit (range 87) 5232 | -7/Garrison | Phase Generator disabled 5274 | -7/Garrison | Triggered checkpoint 5293 | -7/Garrison | Garrison Relay disabled 5311 | -7/Garrison | Entered Factory 5314 | -7/Factory | Identified exit to DSF 5314 | -7/Factory | Entered DSF 5328 | -7/DSF | Additional patrols routed to DSF 5375 | -7/DSF | Discovered new exit (range 15) 5436 | -7/DSF | Build established: Gunner 5560 | -7/DSF | Sterilization system engaged 5580 | -7/DSF | Ambient heat levels rising (+10) 5595 | -7/DSF | Ambient heat levels rising (+10) 5610 | -7/DSF | Ambient heat levels rising (+10) 5625 | -7/DSF | Ambient heat levels rising (+10) 5629 | -7/DSF | Entered Factory 5629 | -6/Factory | Evolved 2 slots: Power x1, Utility x1 5650 | -6/Factory | Identified exit to Garrison 5652 | -6/Factory | Entered Garrison 5815 | -6/Garrison | Triggered checkpoint 5848 | -6/Garrison | Garrison Relay disabled 5891 | -6/Garrison | Triggered checkpoint 5928 | -6/Garrison | Triggered checkpoint 6034 | -6/Garrison | Triggered checkpoint 6087 | -6/Garrison | Discovered new exit (range 12) 6120 | -6/Garrison | Triggered checkpoint 6179 | -6/Garrison | Rescued a captive Derelict 6242 | -6/Garrison | Garrison Relay disabled 6387 | -6/Garrison | Discovered new exit (range 10) 6419 | -6/Garrison | Garrison Relay disabled 6420 | -6/Garrison | Triggered checkpoint 6612 | -6/Garrison | Triggered checkpoint 6644 | -6/Garrison | Garrison Relay disabled 6669 | -6/Garrison | Discovered new exit (range 10) 6740 | -6/Garrison | Triggered checkpoint 6891 | -6/Garrison | Entered Factory 6891 | -5/Factory | Evolved 2 slots: Propulsion x1, Utility x1 7058 | -5/Factory | Build established: Scavenger-Gunner 7120 | -5/Factory | Found Prototype Launcher 7120 | -5/Factory | Identified Tesla Bomb Launcher 7598 | -5/Factory | Spotted B-75 Beast 7681 | -5/Factory | Destroyed B-75 Beast 7707 | -5/Factory | Lost 3 parts (1p1n1u) 7891 | -5/Factory | Lost 3 parts (1p1n1u) 8034 | -5/Factory | Discovered new exit (range 10) 8092 | -5/Factory | Identified exit to Upper Caves 8092 | -5/Factory | Identified exit to Extension 8205 | -5/Factory | Entered Upper Caves 8226 | -5/Upper Caves | Met a Warlord Commander 8227 | -5/Upper Caves | Learned location of Warlord (-5) 8228 | -5/Upper Caves | Warlord Commander delivered Encrypted Comm Array 8233 | -5/Upper Caves | Found Encrypted Comm Array 8361 | -5/Upper Caves | Learned Factory terminal intel 8374 | -5/Upper Caves | Encountered a Warlord checkpoint 8509 | -5/Upper Caves | Learned Factory emergency access door positions 8545 | -5/Upper Caves | Discovered new exit (range 13) 8615 | -5/Upper Caves | Entered another Upper Caves area 8632 | -5/Upper Caves | Learned Factory stockpile data 8676 | -5/Upper Caves | Spotted B-75 Beast 8840 | -5/Upper Caves | Destroyed B-75 Beast 9143 | -5/Upper Caves | Ambushed by wild Derelicts 9159 | -5/Upper Caves | Learned 4 Factory zone layouts 9200 | -5/Upper Caves | Discovered new exit (range 6) 9349 | -5/Upper Caves | Entered Warlord 9391 | -5/Warlord | System corruption cleaned by Quarantine Array 9793 | -5/Warlord | Found Prototype Reactor 9793 | -5/Warlord | Identified Vortex Chain Reactor 9807 | -5/Warlord | Found Prototype Processor 9817 | -5/Warlord | Found Prototype Processor 9880 | -5/Warlord | Met Warlord 9905 | -5/Warlord | Warlord's base attacked by MAIN.C 9961 | -5/Warlord | Build established: Commander-Gunner 10142 | -5/Warlord | Met EX-DEC 10146 | -5/Warlord | Found Prototype Energy Cannon 10152 | -5/Warlord | Found Prototype Energy Gun 10152 | -5/Warlord | Identified Vortex Rail 10157 | -5/Warlord | Found Vortex Rail 10160 | -5/Warlord | Found Prototype Energy Cannon 10160 | -5/Warlord | Identified Vortex Driver 10163 | -5/Warlord | Found Vortex Driver 10168 | -5/Warlord | Found Prototype Energy Gun 10170 | -5/Warlord | Found Prototype Energy Gun 10254 | -5/Warlord | Warlord forces counterattacked 10274 | -5/Warlord | P-70 Sage assimilated allied Archangel 6a 10277 | -5/Warlord | Spotted Striker 10324 | -5/Warlord | Spotted B-86 Titan 10330 | -5/Warlord | Spotted Executioner 10337 | -5/Warlord | Discovered new exit (range 12) 10359 | -5/Warlord | Entered Proximity Caves 10359 | -4/Proximity Caves | Accompanied by 2 allies 10362 | -4/Proximity Caves | Learned Research terminal intel 10368 | -4/Proximity Caves | Learned 8 Research zone layouts 10645 | -4/Proximity Caves | Attracted the attention of an 0b10 outpost 10663 | -4/Proximity Caves | Identified Vortex Shotgun (x2) 10684 | -4/Proximity Caves | Build established: Gunner 10725 | -4/Proximity Caves | Destroyed 11 combat bots 10754 | -4/Proximity Caves | Learned location of Testing (-3) 10872 | -4/Proximity Caves | Discovered new exit (range 7) 10908 | -4/Proximity Caves | Entered Factory 10908 | -4/Factory | Accompanied by 3 allies 10908 | -4/Factory | Evolved 2 slots: Utility x1, Weapon x1 10909 | -4/Factory | Identified Exp. Targeting Computer 10912 | -4/Factory | Loaded intel: 26 terminal locations 11478 | -4/Factory | Spotted B-86 Titan 11644 | -4/Factory | Discovered new exit (range 2) 11651 | -4/Factory | Identified exit to Upper Caves 11667 | -4/Factory | Entered Upper Caves 12180 | -4/Upper Caves | Discovered new exit (range 14) 12196 | -4/Upper Caves | Entered another Upper Caves area 12244 | -4/Upper Caves | Encountered a Warlord checkpoint 12385 | -4/Upper Caves | Attracted the attention of an 0b10 checkpoint 12800 | -4/Upper Caves | Discovered new exit (range 14) 12836 | -4/Upper Caves | Entered Zhirov 12836 | -4/Zhirov | Discovered new exit (range 3) 12860 | -4/Zhirov | Met Zhirov 12884 | -4/Zhirov | Learned location of Quarantine (-2) 12884 | -4/Zhirov | Learned location of Command (-1) 12891 | -4/Zhirov | Zhirov requested help retrieving the SGEMP Prototype 12909 | -4/Zhirov | Found Alien Artifact 12909 | -4/Zhirov | Identified Integrated Reactor 12909 | -4/Zhirov | Installed Integrated Reactor, increased core energy generation (+10) 13006 | -4/Zhirov | Found Alien Artifact 13044 | -4/Zhirov | Build established: Mutant 13058 | -4/Zhirov | Entered Proximity Caves 13344 | -3/Proximity Caves | Build established: Gunner 14228 | -3/Proximity Caves | Discovered new exit (range 8) 14233 | -3/Proximity Caves | Entered Research 14233 | -3/Research | Evolved 2 slots: Utility x2 14234 | -3/Research | Identified exit to Testing 14235 | -3/Research | Loaded intel: 22 terminal locations 14261 | -3/Research | Spotted B-86 Titan 15457 | -3/Research | Destroyed 8 combat bots 15483 | -3/Research | First assault squad dispatched 15541 | -3/Research | Spotted B-86 Titan 15577 | -3/Research | Destroyed B-86 Titan 15626 | -3/Research | Entered Testing 15694 | -3/Testing | Found Prototype Device 15694 | -3/Testing | Identified Exp. Thermal Shield 15722 | -3/Testing | System corruption reached 10% 15853 | -3/Testing | Identified Exp. Armor Integrity Analyzer 15878 | -3/Testing | Lost 3 parts (3u) 15988 | -3/Testing | Found Prototype Device 15988 | -3/Testing | Identified Adv. Kinecellerator 15993 | -3/Testing | Found Adv. Kinecellerator 16005 | -3/Testing | Found Fusion Bomb Launcher 16078 | -3/Testing | Spotted PY-CO80CT1KS4 16220 | -3/Testing | Discovered new exit (range 6) 16273 | -3/Testing | Build established: Scavenger-Gunner 16283 | -3/Testing | Scanned by Researcher 16299 | -3/Testing | Found Prototype Protection 16309 | -3/Testing | Entered Research 16309 | -2/Research | Warlord forces began assault on 0b10 16309 | -2/Research | Evolved 2 slots: Utility x1, Weapon x1 16334 | -2/Research | Distinguished unit "Bridgeowners Association" dispatched to help 16334 | -2/Research | Distinguished unit "Lucky Slug" dispatched to help 16419 | -2/Research | Research machine network offline 16428 | -2/Research | Discovered new exit (range 15) 16849 | -2/Research | Borebot progress halted 16920 | -2/Research | Met up with Warlord 16966 | -2/Research | Discovered new exit (range 15) 17016 | -2/Research | Discovered new exit (range 15) 17040 | -2/Research | Identified exit to Access 17088 | -2/Research | Found Prototype Processor 17088 | -2/Research | Identified Exp. Core Analyzer 17177 | -2/Research | Borebot progress halted 17384 | -2/Research | Found Corrupted Exp. Core Analyzer 17385 | -2/Research | System corruption reached 10% 17572 | -2/Research | Warlord invited to help at Command 17572 | -2/Research | Given Cave Seal Controls access code 17645 | -2/Research | Lost 3 allies 17909 | -2/Research | Entered Access 17909 | -1/Access | Evolved 2 slots: Utility x1, Weapon x1 17954 | -1/Access | Crushed by falling debris 17958 | -1/Access | Identified SHELL Armor 17960 | -1/Access | Destroyed 7 combat bots 18001 | -1/Access | Lost 4 allies 18148 | -1/Access | Lost 3 allies 18207 | -1/Access | Build established: Scavenger-Executioner 18729 | -1/Access | Discovered new exit (range 7) 18968 | -1/Access | Destroyed 7 combat bots 19159 | -1/Access | First assault squad dispatched 19187 | -1/Access | Spotted B-99 Colossus 19198 | -1/Access | Identified BFG-9k Vortex Edition 19214 | -1/Access | Destroyed B-99 Colossus 19657 | -1/Access | High security lockdown imminent 19697 | -1/Access | Lost 11 parts (2p3n2u4w) 19704 | -1/Access | Destroyed 16 combat bots 19737 | -1/Access | High security lockdown engaged 19762 | -1/Access | Core integrity fell below 50% 19853 | -1/Access | Released all parts (8) 19864 | -1/Access | Core integrity fell below 20% 19867 | -1/Access | Identified Transdimensional Reconstructor 19867 | -1/Access | Warped through subspace 19893 | -1/Access | Spotted B-99 Colossus 19971 | *** | Escaped! Last Messages --------------- 19858_ Triggered Hellfire Trap. 19858_ An explosion rips through the floor. 19858_ C-30 ARC bursts open, deploying its payload. 19858_ G-73 Enforcer unfolds itself. 19858_ B-74 Champion unfolds itself. 19858_ G-73 Enforcer unfolds itself. 19858_ E-15 Imp unfolds itself. 19859_ Acquired 36 matter. 19861_ U-05 Engineer lays Concrete. 19863_ Knocked back. 19864_ Acquired 10 matter. 19867_ Identified Transdimensional Reconstructor. 19867_ Warped through subspace. 19872_ R-10 Processor collects Broken Centrium Leg. 19872_ R-10 Processor collects Energy Well. 19875_ R-10 Processor collects Myomer Leg. 19921_ System corrupted: Energy discharge (-37). 19942_ U-05 Engineer builds a Wall. 19947_ =L3Z2MBBHT:JJUF&Z9OMCE0#NWCH: 19965_ K-01 Serf cleans the Terminal. Map ----- +----------------------------------------------------+ | ? ??? ??????? # #?????????????????? | | ???#??? ? ? ?? # #?????????????????? | | ###########???# # " #?????????????????? | | = ###??# # """ #?????????????????? | | ##???# # """ #?????????????????? | | ##???#^ ^ # " #?????????????????? | | ###??# # ??????????????????? | | ##?#?# #?? ???????######???????? | | ###+########### #####+########## #???????? | | " #???????? | | "# #???????? | | ## #############+################+### #???????? | | ## #?????## # ## ##???????? | | ##+######## # ## #????????? | | # ## # ## #????????? | | # ## # ## #????????? | | # "" ## # ## #????????? | | # """ ## # ## #????????? | | # T" #######################"##### ##???????? | | # """ #?#?##??????????????#?# #???# ##???????? | | # "" #?#???????????????###"#"##### ##???????? | | # #????? ??????????? " #????????? | | # # ? ?????????????? " #????????? | | ######+### ????????"""""" " #????????? | | ???????" " " #????????? | | ???????" "@ " " #????????? | | ???????" "" " " #????????? | | ???????" " #????????? | | ########## ?????" """"" " #????????? | | #?? ????????????????" """ """ #????????? | | # ????? ????????????" """"T""" ##???????? | | #???????????????????##########"####### #??#?????? | | #?????????????????????????#?#"##?#?##? #?#?? ??? | | + ????????????????#???#####""####### #????????? | | # ???????????????#?# # #?#??? ??? | | # #?????#????????# # #?## ? ??? | | #? ???????#?#?????# + ?##??#?#?? | | #? ??????#???????## # ???#??#???? | | #?? ????????#??#?### # ????????#? | | #?? ] ?#??????#??#?# # """""" #?????###??#? | | #??? ? ?#???#?###### ### """""" #? ?#?#??#??? | | #???????????#??# # """""" #???????#??#? | | #????????? ????# " # """""" # ?#?#?#?#??? | | ??????? ??#???## " # =% """ #? #???#??#?? | | #?????????????# #! #???##???#??? | | ???? ?? ?????# #[ " ""???#???? | | ???????? ????#?# #########""### #????????? | | ??#??????##????# # %% # #? ?## ????? ? | | ??????#?????#?## #% % #### ?#?? ? ? | | ????????##????## " % % ####? #?? ????? | +----------------------------------------------------+ Best States ------------- Heat Dissipation 111 Coolant Potential 130 Energy Generation 65 Energy Capacity 940 Matter Stores 300 Matter Capacity 300 Sight Range 16 Robot Scan Range 16 Terrain Scan Range 24 Terrain Scan Density 85 ECM Strength 1 Jamming Range 16 Base Temperature (-) 150 Armor Coverage 900 Power Shielding 90 Weapon Shielding 90 Weapon Cycling 25 Phase Shifting 10 Evasion (%) 70 Targeting Accuracy 12 Core Analysis 8 Armor Integrity Analysis 50 Recoil Reduction 6 Particle Charging 30 Kinecelleration 50 Offensive Hacking 10 Defensive Hacking 10 Item Schematics ----------------- Assault Drone Bay | -4/Zhirov | Free Exp. Heat Sink | -4/Zhirov | Free Exp. Optical Array | -4/Zhirov | Free Imp. Arc Thrower | -4/Zhirov | Free Exp. Thermal Shield | -3/Testing | Archive Robot Schematics ------------------ I-47 Archangel | -3/Testing | Archive Fabricated ------------ Hardcell Cannon | x2 | -7/Factory | Preloaded Repaired ---------- Nothing Alien Tech Used ----------------- Integrated Reactor Transdimensional Reconstructor Achievements -------------- None Challenges ------------ None Game ------ Seed ScrapTripodMegatreads Manual? 0 Play Time 04:00:43 Cumulative 366.3 hours Start 2025.08.26 @ 18:41:50 End 2025.08.28 @ 22:12:25 Sessions 5 Manual Loads 0 Difficulty Rogue Special Mode None Game No. 152 Rogue 81 Adventurer 68 Explorer 3 Win Type 0 Total 30 Types 18/2/2/4/3/0/0/0/0/1 Lore% 78 Gallery% 76 Achievement% 74 Wizard Run 0 Options --------- Layout 0 ASCII 0 Keyboard 0 Movement Numpad Keybinds 0 Fullscreen 1 Font 24/Smallcaps Map View 76x50 Zoom Use 0% Tactical HUD 1 Map Filters NONE Filters NONE Steam 1 RUN: abc5b6b4-ea18-4bce-93a0-73d1b026ab58